fUST/lending_fUST_20251206
["ID","MTS","AMOUNT","RATE_DAILY","PERIOD"]
[396487797,1764997335677,150.05,0.000102,2]
[396487798,1764997336130,150.05,0.000103,2]
[396487799,1764997336424,150.05,0.000104,2]
[396487800,1764997336684,150.05,0.000105,2]
[396487801,1764997336985,150.05,0.000106,2]
[396487802,1764997337290,150.05,0.000107,2]
[396487803,1764997337774,150.05,0.000108,2]
[396487804,1764997338151,150.05,0.000109,2]
[396487805,1764997338468,150.05,0.00011,2]
[396487806,1764997338801,150.05,0.000111,2]
[396487807,1764997339118,28.78892486,0.000112,2]
[396487808,1764997339143,121.26107514,0.000112,2]
[396487809,1764997345931,5000.0,0.000112,2]
[396487810,1764997348158,150.0,7.396e-05,2]
[396487811,1764997348537,224.66,8.068e-05,2]
[396487812,1764997348928,336.99,8.74e-05,2]
[396487813,1764997349355,449.32,9.413e-05,2]
[396487814,1764997349748,561.65,0.00010085,2]
[396487815,1764997350148,673.98,0.00010757,2]
[396487816,1764997353705,2482.14892486,0.000112,2]
[396487817,1764997353730,2517.85107514,0.000112,2]
[396487823,1764997369394,5000.0,0.000112,2]
[396487829,1764997377272,2482.15892486,0.000112,2]
[396487830,1764997377295,2517.84107514,0.000112,2]
[396487837,1764997393583,5000.0,0.000112,2]
[396487838,1764997393873,150.05,0.0001,2]
[396487840,1764997394152,150.05,0.000101,2]
[396487841,1764997394437,150.05,0.000103,2]
[396487842,1764997394718,150.05,0.000104,2]
[396487843,1764997394995,150.05,0.000106,2]
[396487844,1764997395394,150.05,0.000107,2]
[396487845,1764997395600,150.05,0.000109,2]
[396487846,1764997395945,150.05,0.00011,2]
[396487847,1764997396248,150.05,0.000111,2]
[396487852,1764997401494,1131.71892486,0.000112,2]
[396487853,1764997401519,3868.28107514,0.000112,2]
[396487858,1764997416923,5000.0,0.000112,2]
[396487866,1764997424759,1131.72892486,0.000112,2]
[396487867,1764997424782,3868.27107514,0.000112,2]
[396487868,1764997426760,150.0,7.423e-05,2]
[396487869,1764997427159,182.75,8.098e-05,2]
[396487870,1764997427575,274.12,8.772e-05,2]
[396487871,1764997428019,365.49,9.447e-05,2]
[396487872,1764997428423,456.87,0.00010122,2]
[396487873,1764997428825,548.24,0.00010797,2]
[396487874,1764997440015,4154.26892486,0.000112,2]
[396487875,1764997447774,1755.64617173,0.0001117,2]
[396487876,1764997450844,150.06,0.0001,2]
[396487877,1764997451133,150.06,0.000102,2]
[396487878,1764997451282,-845.73107514,0.000112,2]
[396487879,1764997451410,150.06,0.000104,2]
[396487880,1764997451682,150.06,0.000106,2]
[396487881,1764997451971,150.06,0.000108,2]
[396487882,1764997452279,150.06,0.000111,2]
[396487883,1764997463138,5000.0,0.000112,2]
[396487887,1764997485384,2708.30784972,0.000112,2]
[396487888,1764997485409,2291.69215028,0.000112,2]
[396487893,1764997488484,2052.23360042,0.00011151,2]
[396487898,1764997505701,150.0,7.396e-05,2]
[396487899,1764997506603,150.0,8.068e-05,2]
[396487900,1764997507029,198.62,8.741e-05,2]
[396487901,1764997507556,264.82,9.413e-05,2]
[396487902,1764997507964,331.03,0.00010085,2]
[396487903,1764997508879,397.23,0.00010758,2]
[396487904,1764997509080,4164.3842493,0.000112,2]
[396487905,1764997509105,835.6157507,0.000112,2]
[396487906,1764997510146,150.05,0.0001,2]
[396487907,1764997510536,150.05,0.000103,2]
[396487908,1764997510812,150.05,0.000106,2]
[396487909,1764997511095,150.05,0.000109,2]
[396487910,1764997511372,150.05,0.000112,2]
[396487912,1764997531573,5000.0,0.000112,2]
[396487915,1764997553882,5000.0,0.00011152,2]
[396487916,1764997562135,155.93024149,0.00010924,2]
[396487917,1764997569587,150.06,0.0001,2]
[396487918,1764997569961,150.06,0.000105,2]
[396487919,1764997570258,150.06,0.00011,2]
[396487920,1764997584921,150.0,7.405e-05,2]
[396487921,1764997585333,150.0,8.078e-05,2]
[396487922,1764997585839,150.0,8.751e-05,2]
[396487923,1764997586235,188.88,9.424e-05,2]
[396487924,1764997586639,236.1,0.00010097,2]
[396487925,1764997587028,283.32,0.0001077,2]
[396487926,1764997589047,-5000.0,0.00011164,2]
[396487927,1764997598579,0.01,0.00011164,2]
[396487928,1764997598606,4999.99,0.00011164,2]
[396487962,1764997627374,150.05,0.0001,2]
[396487963,1764997627682,150.05,0.000108,2]
[396487964,1764997635051,-5000.0,0.00011164,2]
[396487965,1764997645315,0.01,0.00011164,2]
[396487966,1764997645339,4999.99,0.00011164,2]
[396487968,1764997663120,150.0,7.396e-05,2]
[396487969,1764997663540,150.0,8.069e-05,2]
[396487970,1764997663929,161.28,8.741e-05,2]
[396487971,1764997664320,215.03,9.413e-05,2]
[396487972,1764997664750,268.79,0.00010086,2]
[396487973,1764997665153,322.55,0.00010758,2]
[396487974,1764997681231,-5000.0,0.00011164,2]
[396487975,1764997684277,0.01,0.00010839,2]
[396487976,1764997684300,545.48,0.00010839,2]
[396487977,1764997684536,545.49,0.00010839,2]
[396487978,1764997684952,545.5,0.00010839,2]
[396487979,1764997685505,150.06,0.0001,2]
[396487980,1764997691102,5000.0,0.00011164,2]
[396487992,1764997713935,5000.0,0.00011164,2]
[396487993,1764997736290,5000.0,0.00011164,2]
[396487994,1764997741449,0.01,7.395e-05,2]
[396487995,1764997741476,149.99,7.395e-05,2]
[396487996,1764997742359,274.41,8.067e-05,2]
[396487997,1764997742405,250.0,0.00013099,3]
[396487998,1764997742752,250.0,0.00011999,3]
[396487999,1764997742793,411.62,8.74e-05,2]
[396488000,1764997743187,548.82,9.412e-05,2]
[396488001,1764997743593,686.03,0.00010084,2]
[396488002,1764997743980,823.23,0.00010756,2]
[396488003,1764997744471,161.95,0.0001,2]
[396488004,1764997758757,3045.79348909,0.00011164,2]
[396488006,1764997773667,3898.16651091,0.00010363,2]
[396488007,1764997773688,10000.01,0.00010363,2]
[396488008,1764997773709,4412.03181669,0.00010363,2]
[396488009,1764997804745,161.95,0.0001,2]
[396488010,1764997820166,150.0,7.399e-05,2]
[396488011,1764997820564,200.74,8.072e-05,2]
[396488012,1764997820962,301.11,8.744e-05,2]
[396488013,1764997821403,401.49,9.417e-05,2]
[396488014,1764997821793,501.86,0.00010089,2]
[396488015,1764997822206,602.23,0.00010762,2]
[396488088,1764997838586,-300.0,0.00011277,2]
[396488090,1764997838596,-2312.83697232,0.00011277,2]
[396488092,1764997838605,-791.95684013,0.00011277,2]
[396488097,1764997838641,-206.06399295,0.00011277,2]
[396488099,1764997838651,-1293.93600705,0.00011277,2]
[396488133,1764997843127,-359.50100004,0.00011277,2]
[396488136,1764997843934,-354.48000061,0.00011277,2]
[396488141,1764997848410,-2157.40013533,0.00011277,2]
[396488142,1764997848420,-167.98099874,0.00011278,2]
[396488143,1764997848430,-242.0,0.00011278,2]
[396488144,1764997848439,-500.0,0.0001128,2]
[396488145,1764997848449,-500.0,0.0001128,2]
[396488146,1764997848605,-500.0,0.0001128,2]
[396488147,1764997848661,-500.0,0.0001128,2]
[396488148,1764997848671,-217.62014302,0.0001128,2]
[396488149,1764997848684,-306.71965628,0.0001128,2]
[396488150,1764997848694,-531.0965972,0.0001128,2]
[396488151,1764997848703,-418.46051465,0.0001128,2]
[396488154,1764997863863,161.94,0.0001,2]
[396488156,1764997898961,150.0,7.396e-05,2]
[396488157,1764997899410,150.0,8.069e-05,2]
[396488158,1764997899835,218.74,8.741e-05,2]
[396488159,1764997900242,291.65,9.414e-05,2]
[396488160,1764997900681,364.57,0.00010086,2]
[396488161,1764997901035,437.48,0.00010758,2]
[396488162,1764997905317,472.6,0.0001,2]
[396488163,1764997906016,472.6,0.0001,2]
[396488164,1764997906956,472.6,0.0001,2]
[396488165,1764997907887,76.41818331,0.0001,2]
[396488166,1764997907910,396.18181669,0.0001,2]
[396488167,1764997908761,472.6,0.0001,2]
[396488168,1764997909641,472.6,0.0001,2]
[396488171,1764997977459,150.0,7.399e-05,2]
[396488172,1764997977836,150.0,8.071e-05,2]
[396488173,1764997978257,157.17,8.744e-05,2]
[396488174,1764997978648,209.57,9.417e-05,2]
[396488175,1764997979058,261.96,0.00010089,2]
[396488176,1764997979467,314.35,0.00010762,2]
[396488177,1764998053970,150.0,7.421e-05,2]
[396488178,1764998054379,150.0,8.096e-05,2]
[396488179,1764998054959,150.0,8.771e-05,2]
[396488180,1764998055181,150.0,9.445e-05,2]
[396488181,1764998055695,182.85,0.0001012,2]
[396488182,1764998056613,219.43,0.00010795,2]
[396488186,1764998127622,150.0,7.414e-05,2]
[396488187,1764998128063,150.0,8.088e-05,2]
[396488188,1764998128703,150.0,8.762e-05,2]
[396488189,1764998128911,150.0,9.436e-05,2]
[396488190,1764998129326,150.0,0.0001011,2]
[396488191,1764998129738,150.0,0.00010784,2]
[396488193,1764998198897,150.0,7.418e-05,2]
[396488194,1764998199317,150.0,8.092e-05,2]
[396488195,1764998199741,150.0,8.766e-05,2]
[396488196,1764998200188,150.0,9.441e-05,2]
[396488197,1764998200610,150.0,0.00010115,2]
[396488198,1764998201015,150.0,0.00010789,2]
[396488210,1764998481861,-2052.23360042,0.00011085,2]
[396488243,1764998796547,-4000000.0,0.00035776,20]
[396488245,1764998800511,-3632233.39909057,0.00035776,20]
[396488246,1764998800539,-367766.60090943,0.00035776,20]
[396488248,1764998803664,-396550.3651027,0.00035776,20]
[396488249,1764998803689,-10000.0,0.00035776,120]
[396488250,1764998803712,-246700.48881959,0.00035776,20]
[396488251,1764998803735,-1402.26539764,0.00035776,120]
[396488252,1764998803760,-244.43034168,0.00035776,120]
[396488253,1764998803783,-158.0,0.00035776,120]
[396488254,1764998803807,-174.59821,0.00035776,120]
[396488255,1764998803830,-1188.358,0.00035776,120]
[396488256,1764998803853,-1443.24020217,0.00035776,20]
[396488257,1764998803877,-1414.0,0.00035776,120]
[396488258,1764998803902,-435.86652183,0.00035776,120]
[396488259,1764998803927,-31676.9,0.00035776,90]
[396488260,1764998803953,-11483.0,0.00035776,30]
[396488261,1764998803977,-7205.0,0.00035776,30]
[396488262,1764998804000,-1005.02459276,0.00035776,120]
[396488263,1764998804023,-225960.92610455,0.00035776,20]
[396488264,1764998804045,-200.0,0.00035776,120]
[396488265,1764998804070,-457.19960134,0.00035776,30]
[396488266,1764998804294,-231864.77817939,0.00035776,30]
[396488267,1764998804320,-947.32185356,0.00035776,120]
[396488268,1764998804345,-5000.0,0.00035776,30]
[396488269,1764998804369,-5000.0,0.00035776,60]
[396488270,1764998804392,-5000.0,0.00035776,45]
[396488271,1764998804414,-5000.0,0.00035776,30]
[396488272,1764998804437,-1000.0,0.00035776,120]
[396488273,1764998804460,-500.0,0.00035776,120]
[396488274,1764998804483,-500.0,0.00035776,120]
[396488275,1764998804508,-500.0,0.00035776,120]
[396488276,1764998804530,-500.0,0.00035776,120]
[396488277,1764998804555,-500.0,0.00035776,120]
[396488278,1764998804578,-500.0,0.00035776,120]
[396488279,1764998804603,-500.0,0.00035776,120]
[396488280,1764998804626,-500.0,0.00035776,120]
[396488281,1764998804649,-500.0,0.00035776,120]
[396488282,1764998804671,-500.0,0.00035776,120]
[396488283,1764998804695,-500.0,0.00035776,120]
[396488284,1764998804718,-500.0,0.00035776,120]
[396488285,1764998804742,-444.49005324,0.00035776,120]
[396488286,1764998804767,-200.0,0.00035776,120]
[396488287,1764998804790,-200.0,0.00035776,120]
[396488288,1764998804813,-42000.0,0.00035776,39]
[396488289,1764998804837,-500.0,0.00035776,120]
[396488290,1764998804860,-30000.0,0.00035776,36]
[396488291,1764998804884,-20000.0,0.00035776,42]
[396488292,1764998804908,-1011.94777021,0.00035776,30]
[396488293,1764998804932,-2708131.79924934,0.00035776,20]
[396488294,1764998809673,-4000000.0,0.00035776,20]
[396488295,1764998813682,-578046.69451229,0.00035776,20]
[396488296,1764998813709,-500.0,0.00035776,120]
[396488297,1764998813735,-500.0,0.00035776,120]
[396488298,1764998813760,-500.0,0.00035776,120]
[396488299,1764998813784,-10262.505154,0.00035776,120]
[396488300,1764998813808,-500.0,0.00035776,120]
[396488301,1764998813831,-30000.0,0.00035776,120]
[396488302,1764998813854,-218144.38011142,0.00035776,60]
[396488303,1764998813876,-2500.0,0.00035776,120]
[396488304,1764998813899,-27737.67985412,0.00035776,31]
[396488305,1764998813922,-500.0,0.00035776,120]
[396488306,1764998813945,-511.34,0.00035776,120]
[396488307,1764998813968,-500.0,0.00035776,120]
[396488308,1764998813994,-500.0,0.00035776,120]
[396488309,1764998814018,-534.02,0.00035776,120]
[396488310,1764998814043,-26991.44861046,0.00035776,120]
[396488311,1764998814067,-500.0,0.00035776,120]
[396488312,1764998814091,-500.0,0.00035776,120]
[396488313,1764998814114,-534.02,0.00035776,120]
[396488314,1764998814138,-500.0,0.00035776,120]
[396488315,1764998814160,-500.0,0.00035776,120]
[396488316,1764998814182,-522.68,0.00035776,120]
[396488317,1764998814205,-500.0,0.00035776,120]
[396488318,1764998814229,-500.0,0.00035776,120]
[396488319,1764998814252,-500.0,0.00035776,120]
[396488320,1764998814276,-500.0,0.00035776,120]
[396488321,1764998814301,-500.0,0.00035776,120]
[396488322,1764998814325,-500.0,0.00035776,120]
[396488323,1764998814350,-303.20779239,0.00035776,120]
[396488324,1764998814375,-1404.24577346,0.00035776,120]
[396488325,1764998814399,-504.2025559,0.00035776,120]
[396488326,1764998814423,-150.91519898,0.00035776,30]
[396488327,1764998814447,-500.0,0.00035776,120]
[396488328,1764998814471,-2503.57583924,0.00035776,120]
[396488329,1764998814495,-26173.58510248,0.00035776,120]
[396488330,1764998814523,-3000.0,0.00035776,120]
[396488331,1764998814548,-500.0,0.00035776,120]
[396488332,1764998814572,-176249.6796689,0.00035776,60]
[396488333,1764998814597,-173358.97821477,0.00035776,20]
[396488334,1764998814621,-1572.54,0.00035776,120]
[396488335,1764998814646,-1572.54,0.00035776,120]
[396488336,1764998814675,-1572.54,0.00035776,120]
[396488337,1764998814701,-1572.54,0.00035776,120]
[396488338,1764998814725,-1572.54,0.00035776,120]
[396488339,1764998814749,-1572.54,0.00035776,120]
[396488340,1764998814772,-1572.54,0.00035776,120]
[396488341,1764998814796,-1572.54,0.00035776,120]
[396488342,1764998814821,-1572.54,0.00035776,120]
[396488343,1764998814847,-1572.54,0.00035776,120]
[396488344,1764998814871,-1572.54,0.00035776,120]
[396488345,1764998814896,-1572.54,0.00035776,120]
[396488346,1764998814921,-1572.54,0.00035776,120]
[396488347,1764998814946,-1572.54,0.00035776,120]
[396488348,1764998814971,-1572.54,0.00035776,120]
[396488349,1764998814996,-1572.54,0.00035776,120]
[396488350,1764998815020,-1572.54,0.00035776,120]
[396488351,1764998815046,-1572.54,0.00035776,120]
[396488352,1764998815070,-1572.54,0.00035776,120]
[396488353,1764998815094,-1572.54,0.00035776,120]
[396488354,1764998815119,-1572.54,0.00035776,120]
[396488355,1764998815143,-1572.54,0.00035776,120]
[396488356,1764998815169,-1572.54,0.00035776,120]
[396488357,1764998815194,-1572.58,0.00035776,120]
[396488358,1764998815217,-15093.78046638,0.00035776,120]
[396488359,1764998815244,-3923.66875828,0.00035776,120]
[396488360,1764998815269,-65571.67,0.00035776,90]
[396488361,1764998815294,-10322.12066275,0.00035776,120]
[396488362,1764998815318,-5617.50473207,0.00035776,120]
[396488363,1764998815342,-10634.50813318,0.00035776,120]
[396488364,1764998815366,-8037.96730487,0.00035776,120]
[396488365,1764998815389,-5434.73636663,0.00035776,120]
[396488366,1764998815413,-247.0,0.00035776,30]
[396488367,1764998815437,-48241.0,0.00035776,30]
[396488368,1764998815462,-9352.76560035,0.00035776,60]
[396488369,1764998815485,-13621.35369912,0.00035776,60]
[396488370,1764998815512,-410.02101757,0.00035776,31]
[396488371,1764998815536,-11120.84088906,0.00035776,31]
[396488372,1764998815562,-20000.0,0.00035776,120]
[396488373,1764998815586,-26190.14301511,0.00035776,30]
[396488374,1764998815610,-15724.83528254,0.00035776,120]
[396488375,1764998815634,-11330.21299878,0.00035776,30]
[396488376,1764998815658,-6393.38974727,0.00035776,30]
[396488377,1764998815681,-245654.76795874,0.00035776,30]
[396488378,1764998815704,-74785.89934607,0.00035776,30]
[396488379,1764998815728,-31524.58209895,0.00035776,30]
[396488380,1764998815751,-333247.09678754,0.00035776,30]
[396488381,1764998815942,-200.0,0.00035776,30]
[396488382,1764998815967,-981.12340056,0.00035776,120]
[396488383,1764998815990,-200.0,0.00035776,31]
[396488384,1764998816013,-351.11586774,0.00035776,120]
[396488385,1764998816036,-1000000.0,0.00035776,120]
[396488386,1764998816059,-5173.85017102,0.00035776,120]
[396488387,1764998816083,-11776.28619164,0.00035776,120]
[396488388,1764998816107,-5000.0,0.00035776,30]
[396488389,1764998816131,-4068.821203,0.00035776,120]
[396488390,1764998816159,-23071.30582326,0.00035776,120]
[396488391,1764998816183,-11000.0,0.00035776,38]
[396488392,1764998816207,-3000.0,0.00035776,120]
[396488393,1764998816231,-3545.09271774,0.00035776,120]
[396488394,1764998816256,-500.0,0.00035776,120]
[396488395,1764998816281,-500.0,0.00035776,120]
[396488396,1764998816306,-500.0,0.00035776,120]
[396488397,1764998816332,-500.0,0.00035776,120]
[396488398,1764998816357,-500.0,0.00035776,120]
[396488399,1764998816382,-500.0,0.00035776,120]
[396488400,1764998816409,-500.0,0.00035776,120]
[396488401,1764998816433,-500.0,0.00035776,120]
[396488402,1764998816456,-500.0,0.00035776,120]
[396488403,1764998816479,-500.0,0.00035776,120]
[396488404,1764998816506,-500.0,0.00035776,120]
[396488405,1764998816530,-500.0,0.00035776,120]
[396488406,1764998816555,-616.24395533,0.00035776,120]
[396488407,1764998816578,-625862.13741604,0.00035776,20]
[396488414,1764998886813,423.2059058,0.00010618,2]
[396488415,1764998894789,5472.33689336,0.00011,2]
[396488416,1764998894813,3779.09310664,0.00011,2]
[396488418,1764998902243,288.25028043,0.0001,2]
[396488419,1764998911615,1000.0,0.0001,2]
[396488423,1764998918376,4932.66661293,0.0001,2]
[396488424,1764998918398,10000.01,0.0001,2]
[396488425,1764998918421,90.96434835,0.0001,2]
[396488426,1764998918632,2910.83404251,0.0001,2]
[396488429,1764998945145,250.0,0.00013098,3]
[396488430,1764998958004,2920.0,0.0002,120]
[396488431,1764998972774,-2052.23360042,0.00011143,2]
[396488440,1764999014028,3000.0,0.0002,120]
[396488474,1764999031582,-242.0,0.00011182,2]
[396488476,1764999031592,-167.62137877,0.00011182,2]
[396488478,1764999031601,-4496.15507419,0.00011191,2]
[396488480,1764999031610,-192.11591377,0.00011195,2]
[396488482,1764999031619,-500.0,0.00011195,2]
[396488484,1764999031629,-500.0,0.00011195,2]
[396488486,1764999031638,-500.0,0.00011195,2]
[396488488,1764999031648,-500.0,0.00011195,2]
[396488489,1764999031659,-500.0,0.00011195,2]
[396488491,1764999031669,-500.0,0.00011195,2]
[396488493,1764999031680,-500.0,0.00011195,2]
[396488496,1764999031689,-500.0,0.00011195,2]
[396488498,1764999031699,-500.0,0.00011195,2]
[396488500,1764999031708,-500.0,0.00011195,2]
[396488501,1764999031717,-500.0,0.00011195,2]
[396488505,1764999031727,-500.0,0.00011195,2]
[396488508,1764999031736,-500.0,0.00011195,2]
[396488511,1764999031745,-500.0,0.00011195,2]
[396488514,1764999031754,-500.0,0.00011195,2]
[396488518,1764999031764,-500.0,0.00011195,2]
[396488520,1764999031773,-500.0,0.00011195,2]
[396488521,1764999031782,-500.0,0.00011195,2]
[396488523,1764999031791,-500.0,0.00011195,2]
[396488525,1764999031800,-500.0,0.00011195,2]
[396488527,1764999031810,-500.0,0.00011195,2]
[396488529,1764999031820,-500.0,0.00011195,2]
[396488531,1764999031829,-500.0,0.00011195,2]
[396488533,1764999031839,-500.0,0.00011195,2]
[396488535,1764999031848,-500.0,0.00011195,2]
[396488538,1764999031857,-500.0,0.00011195,2]
[396488539,1764999031866,-500.0,0.00011195,2]
[396488541,1764999031875,-500.0,0.00011195,2]
[396488543,1764999031884,-500.0,0.00011195,2]
[396488546,1764999031894,-500.0,0.00011195,2]
[396488547,1764999031903,-500.0,0.00011195,2]
[396488549,1764999031912,-500.0,0.00011195,2]
[396488551,1764999031922,-500.0,0.00011195,2]
[396488553,1764999031931,-500.0,0.00011195,2]
[396488555,1764999031940,-500.0,0.00011195,2]
[396488557,1764999031949,-500.0,0.00011195,2]
[396488559,1764999031958,-633.03103316,0.00011195,2]
[396488561,1764999031968,-500.0,0.00011195,2]
[396488563,1764999031977,-500.0,0.00011195,2]
[396488565,1764999031986,-500.0,0.00011195,2]
[396488567,1764999031995,-500.0,0.00011195,2]
[396488569,1764999032005,-500.0,0.00011195,2]
[396488571,1764999032015,-500.0,0.00011195,2]
[396488573,1764999032024,-277.43356686,0.00011195,2]
[396488576,1764999032037,-300.0,0.00011195,2]
[396488578,1764999032046,-566.59896654,0.00011195,2]
[396488580,1764999032055,-500.0,0.00011195,2]
[396488582,1764999032064,-500.0,0.00011195,2]
[396488584,1764999032074,-500.7051232,0.00011195,2]
[396488586,1764999032083,-500.0,0.00011195,2]
[396488588,1764999032092,-500.0,0.00011195,2]
[396488590,1764999032102,-500.0,0.00011195,2]
[396488598,1764999032111,-50000.0,0.00011196,2]
[396488599,1764999032379,-500.0,0.00011196,2]
[396488600,1764999032388,-934.81,0.00011196,2]
[396488601,1764999032398,-2072.31,0.00011196,2]
[396488602,1764999032407,-500.0,0.00011196,2]
[396488603,1764999032417,-500.39536199,0.00011196,2]
[396488604,1764999032426,-500.0,0.00011196,2]
[396488605,1764999032434,-500.0,0.00011196,2]
[396488606,1764999032443,-500.0,0.00011196,2]
[396488607,1764999032452,-500.0,0.00011196,2]
[396488608,1764999032462,-500.0,0.00011196,2]
[396488609,1764999032470,-803.7016858,0.00011196,2]
[396488650,1764999037623,-640.91758565,0.00011195,2]
[396488651,1764999037632,-500.0,0.00011195,2]
[396488652,1764999037641,-500.0,0.00011195,2]
[396488653,1764999037650,-907.9583142,0.00011196,2]
[396488654,1764999037664,-500.0,0.00011196,2]
[396488655,1764999037673,-500.0,0.00011196,2]
[396488656,1764999037683,-1046.29,0.00011196,2]
[396488657,1764999037693,-1551.09200303,0.00011196,2]
[396488658,1764999037733,-314.34799697,0.00011196,2]
[396488660,1764999037742,-500.0,0.00011196,2]
[396488661,1764999037753,-501.03654951,0.00011196,2]
[396488662,1764999037762,-716.83,0.00011196,2]
[396488663,1764999037771,-500.0,0.00011196,2]
[396488664,1764999037780,-428.51633352,0.00011196,2]
[396488665,1764999037791,-71.48366648,0.00011196,2]
[396488666,1764999037800,-603.49,0.00011196,2]
[396488667,1764999037809,-400.02589385,0.00011196,2]
[396488710,1764999039993,-577.05889217,0.00011195,2]
[396488712,1764999040002,-84.92979889,0.00011196,2]
[396488714,1764999040014,-161.01430726,0.00011196,2]
[396488716,1764999040024,-500.0,0.00011196,2]
[396488718,1764999040033,-14.60427125,0.00011196,2]
[396489279,1764999046424,-512.45477942,0.00011195,2]
[396489280,1764999046434,-500.0,0.00011195,2]
[396489281,1764999046443,-485.39572875,0.00011196,2]
[396489282,1764999046452,-500.0,0.00011196,2]
[396489283,1764999046461,-368.61399417,0.00011196,2]
[396489288,1764999111667,-2354.01735962,0.00011098,2]
[396489289,1764999111749,-10000.01,0.00011098,2]
[396489290,1764999111768,-10000.01,0.00011098,2]
[396489291,1764999112282,-320.56352019,0.00011098,2]
[396489292,1764999113776,-10000.01,0.00011098,2]
[396489293,1764999113916,-10000.01,0.00011098,2]
[396489294,1764999114035,-10000.01,0.00011098,2]
[396489295,1764999114745,-10000.01,0.00011098,2]
[396489296,1764999114827,-10000.01,0.00011098,2]
[396489297,1764999117161,-461.46577259,0.00011098,2]
[396489302,1764999123827,669.00250047,0.00011,2]
[396489303,1764999132744,1626.4594578,0.00011,2]
[396489304,1764999140542,848.99635111,0.00011,2]
[396490230,1764999483757,400.65,0.00010549,2]
[396490231,1764999484059,400.65,0.00010549,2]
[396490232,1764999484606,400.63,0.00010549,2]
[396490233,1764999540576,2400.18127673,0.00010175,2]
[396490234,1764999540599,40.14005297,0.00010175,2]
[396490235,1764999549967,1863.6512392,0.00010094,2]
[396490240,1764999563280,5000.0,0.00010952,2]
[396490241,1764999586895,3136.3587608,0.00010952,2]
[396490242,1764999586919,1863.6412392,0.00010952,2]
[396490243,1764999609275,5000.0,0.00010952,2]
[396490244,1764999632191,3136.3687608,0.00010952,2]
[396490245,1764999632217,1863.6312392,0.00010952,2]
[396490246,1764999640341,5000.0,0.00010952,2]
[396490271,1764999882046,333.33333333,0.000211,99]
[396490272,1764999882329,333.33333333,0.000211,99]
[396490273,1764999921597,160.0,5.8e-07,2]
[396490274,1764999922628,160.0,5.8e-07,2]
[396490278,1764999940486,2816.3787608,0.00010952,2]
[396490279,1764999940512,2183.6212392,0.00010952,2]
[396490280,1764999948338,5000.0,0.00010952,2]
[396490281,1764999964024,2816.3887608,0.00010952,2]
[396490282,1764999964049,981.7538015,0.00010952,2]
[396490285,1765000042840,2598.0,0.00015,30]
[396490330,1765000088927,797.6265058,0.00010089,2]
[396490331,1765000131093,-213.3723072,0.00010992,2]
[396490332,1765000133183,-200.94089048,0.00010992,2]
[396490333,1765000135347,-240.14136907,0.00010992,2]
[396490334,1765000139211,-375.3771532,0.00010992,2]
[396490336,1765000140817,-158.2235184,0.00010992,2]
[396490337,1765000142271,-209.67789737,0.00010992,2]
[396490338,1765000142327,300.0,0.00010991,2]
[396490339,1765000145349,-265.39730965,0.00010992,2]